bitfinex/quotes_SOLUSD_20240705
["timestamp","ask_amount","ask_price","bid_price","bid_amount"]
[1720185255922,7.6595,130.56,130.52,7.6613]
[1720185256092,7.6588,130.57,130.53,7.6607]
[1720185256292,7.8279,130.59,130.54,7.66]
[1720185256610,7.8279,130.59,130.55,7.6597]
[1720185256910,7.6579,130.59,130.55,7.6597]
[1720185257084,7.6581,130.58,130.51,100.0]
[1720185257291,7.6585,130.58,130.54,7.6599]
[1720185257485,27.14958173,130.61,130.53,7.6608]
[1720185257886,7.659,130.57,130.53,7.6608]
[1720185258816,7.6594,130.56,130.52,7.6614]
[1720185259024,14.18934484,130.61,130.49,6.1752]
[1720185259314,7.6601,130.55,130.5,7.6625]
[1720185260090,7.6601,130.55,130.51,7.6622]
[1720185260616,7.6601,130.55,130.49,6.1752]
[1720185260821,7.6614,130.53,130.49,13.8384]
[1720185261201,7.66,130.55,130.5,7.6627]
[1720185261624,7.8295,130.56,130.51,7.662]
[1720185261829,7.6599,130.55,130.51,7.662]
[1720185262039,0.17,130.56,130.49,6.1752]
[1720185262325,7.6612,130.53,130.49,6.1752]
[1720185262493,7.6612,130.53,130.49,13.8385]
[1720185263324,8.00952447,130.55,130.49,6.1752]
[1720185263325,15.66982447,130.55,130.49,6.1752]
[1720185263623,7.6606,130.54,130.5,7.6626]
[1720185263991,7.6606,130.54,130.49,6.1752]
[1720185264209,7.6606,130.54,130.49,13.8383]
[1720185264407,27.15962447,130.55,130.49,6.1752]
[1720185264591,0.17,130.54,130.49,6.1752]
[1720185265225,0.17,130.54,130.45,6.2697]
[1720185265417,7.6646,130.47,130.45,6.2697]
[1720185265726,7.6648,130.47,130.42,7.6674]
[1720185265896,7.6641,130.48,130.44,7.6662]
[1720185266101,7.6646,130.47,130.42,7.667]
[1720185266310,19.1559,130.51,130.42,7.667]
[1720185266519,7.6652,130.46,130.42,7.667]
[1720185266831,7.6647,130.47,130.42,7.667]
[1720185267003,0.17,130.5,130.41,6.3697]
[1720185267318,7.6636,130.49,130.45,7.6655]
[1720185267522,0.17,130.5,130.45,7.6655]
[1720185267894,7.6635,130.49,130.44,7.666]
[1720185268098,7.664,130.48,130.44,7.666]
[1720185268519,0.17,130.5,130.42,7.6673]
[1720185268520,19.3272,130.5,130.42,7.6673]
[1720185268732,7.6641,130.48,130.44,7.6662]
[1720185269024,7.6635,130.49,130.44,7.6662]
[1720185270494,8.00952447,130.55,130.48,7.6637]
[1720185270702,15.66952447,130.55,130.51,7.6621]
[1720185270907,8.00952447,130.55,130.52,7.6615]
[1720185271137,19.1404,130.62,130.5,122.8122]
[1720185271309,7.6569,130.6,130.52,100.0]
[1720185271627,30.57289394,130.65,130.56,7.6592]
[1720185271628,7.6564,130.61,130.56,7.6592]
[1720185271834,7.6571,130.6,130.55,7.6596]
[1720185272307,7.6564,130.61,130.53,100.0]
[1720185272706,7.657,130.6,130.56,7.6591]
[1720185272924,7.6578,130.59,130.53,100.0]
[1720185273126,8.00558449,130.62,130.53,100.0]
[1720185273432,7.6572,130.6,130.55,7.6593]
[1720185273732,27.14528449,130.62,130.51,100.0]
[1720185274230,7.6583,130.58,130.51,100.0]
[1720185274638,7.6583,130.58,130.53,7.6608]
[1720185275313,8.00558449,130.62,130.51,100.0]
[1720185275505,7.8265,130.61,130.56,7.6588]
[1720185275706,7.6565,130.61,130.56,7.6588]
[1720185275906,7.6571,130.6,130.56,7.6588]
[1720185276310,7.6575,130.59,130.55,7.6596]
[1720185276505,7.6575,130.59,130.54,7.6603]
[1720185276736,7.6575,130.59,130.55,7.6598]
[1720185276942,7.657,130.6,130.55,7.6598]
[1720185277250,0.17,130.59,130.56,7.6592]
[1720185277552,7.657,130.6,130.56,7.6592]
[1720185278040,7.6579,130.59,130.54,7.6604]
[1720185278245,7.8265,130.61,130.56,7.6588]
[1720185279035,7.657,130.6,130.55,7.6597]
[1720185279440,8.00558449,130.62,130.6,7.6565]
[1720185279648,10.3704112,130.67,130.55,200.0]
[1720185279854,8.00304972,130.63,130.57,100.0]
[1720185280030,8.00304972,130.63,130.62,7.6557]
[1720185280219,11.91553773,130.67,130.57,200.0]
[1720185280422,4.26263773,130.67,130.63,7.655]
[1720185280731,4.26263773,130.67,130.61,6.5408]
[1720185280935,4.26263773,130.67,130.64,7.6542]
[1720185281142,4.26263773,130.67,130.65,7.6539]
[1720185281348,4.26263773,130.67,130.65,7.6534]
[1720185281546,8.00176207,130.69,130.63,100.0]
[1720185281732,8.00176207,130.69,130.68,7.6522]
[1720185281929,14.00255511,130.78,130.65,122.99]
[1720185282136,15.64531409,130.75,130.66,100.0]
[1720185282455,15.64531409,130.75,130.65,122.99]
[1720185282456,0.1,130.79,130.7,6.0802]
[1720185282627,7.99643638,130.74,130.7,6.0802]
[1720185282829,7.6477,130.76,130.71,7.6501]
[1720185283050,7.6486,130.75,130.7,13.7311]
[1720185283442,7.99659648,130.77,130.69,7.6515]
[1720185283656,44.42,130.72,130.53,6.587]
[1720185283955,19.1356,130.65,130.53,6.587]
[1720185284456,7.6547,130.64,130.59,7.6573]
[1720185284666,7.6539,130.66,130.61,7.6559]
[1720185284863,7.6539,130.66,130.56,222.99]
[1720185284864,7.6535,130.66,130.62,7.6556]
[1720185285154,7.6538,130.66,130.61,7.6562]
[1720185285460,7.8229,130.67,130.58,100.0]
[1720185285659,26.42425325,130.71,130.58,200.0]
[1720185285878,26.42425325,130.71,130.64,7.6546]
[1720185285879,7.6521,130.69,130.64,7.6546]
[1720185286380,7.6512,130.7,130.65,7.6538]
[1720185286586,26.42065325,130.74,130.57,7.6585]
[1720185286587,7.6562,130.62,130.57,7.6585]
[1720185286750,19.1344,130.66,130.54,100.0]
[1720185287160,7.8245,130.65,130.6,7.6566]
[1720185287369,7.6547,130.64,130.59,7.6574]
[1720185287673,0.17,130.65,130.54,100.0]
[1720185287850,7.6558,130.62,130.57,7.6583]
[1720185288174,7.6552,130.64,130.59,7.6571]
[1720185288359,7.6555,130.63,130.58,7.6579]
[1720185288557,7.6546,130.64,130.59,7.6574]
[1720185288870,0.17,130.66,130.54,100.0]
[1720185289049,7.655,130.64,130.59,7.6573]
[1720185289451,0.17,130.65,130.58,7.6581]
[1720185289650,7.6558,130.62,130.54,100.0]
[1720185289880,0.17,130.65,130.54,100.0]
[1720185290055,7.6558,130.62,130.57,7.6583]
[1720185290445,7.6564,130.61,130.57,7.6583]
[1720185290682,7.6557,130.63,130.57,7.6583]
[1720185291461,7.6559,130.62,130.57,7.6583]
[1720185291657,7.6551,130.64,130.59,7.6573]
[1720185292746,7.6552,130.63,130.59,7.6573]
[1720185293056,7.6569,130.6,130.56,7.6591]
[1720185293268,7.6564,130.61,130.56,7.6591]
[1720185293474,7.6564,130.61,130.57,7.6585]
[1720185293692,7.6564,130.61,130.56,7.659]
[1720185293892,8.00518193,130.62,130.53,7.6608]
[1720185293893,7.6582,130.58,130.53,7.6608]
[1720185294072,8.00518193,130.62,130.53,7.661]
[1720185294258,7.6598,130.56,130.51,7.6619]
[1720185294465,19.3112,130.61,130.49,106.3457]
[1720185294685,7.6585,130.58,130.53,7.6606]
[1720185295397,7.6585,130.58,130.54,7.6603]
[1720185295568,7.6585,130.58,130.53,7.661]
[1720185295772,7.6589,130.57,130.49,106.3457]
[1720185296164,7.6583,130.58,130.53,7.661]
[1720185296797,7.659,130.57,130.49,106.3457]
[1720185296990,7.659,130.57,130.52,7.6615]
[1720185298000,14.1861326,130.62,130.52,7.6615]
[1720185298300,14.1861326,130.62,130.55,7.6593]
[1720185298301,8.00518193,130.62,130.55,7.6593]
[1720185298589,8.00518193,130.62,130.56,7.6592]
[1720185298794,8.00518193,130.62,130.54,26.8104]
[1720185298966,8.00518193,130.62,130.55,7.6594]
[1720185299173,7.6573,130.6,130.54,19.1505]
[1720185299366,7.6573,130.6,130.55,7.6597]
[1720185299694,8.00518193,130.62,130.54,19.1505]
[1720185299695,7.6583,130.58,130.54,19.1505]
[1720185299873,7.6583,130.58,130.54,26.8108]
[1720185300065,7.6577,130.59,130.54,26.8108]
[1720185300262,7.6581,130.58,130.54,26.8108]
[1720185300495,7.6581,130.58,130.49,6.3457]
[1720185300496,19.1455,130.58,130.51,26.8164]
[1720185300666,7.8289,130.57,130.52,7.6613]
[1720185300883,0.17,130.58,130.51,19.1544]
[1720185301086,0.17,130.6,130.48,34.9257]
[1720185301299,7.6611,130.53,130.48,42.5895]
[1720185301615,7.6607,130.54,130.49,7.6632]
[1720185301784,7.6607,130.54,130.48,19.1587]
[1720185301981,7.6601,130.55,130.5,7.6625]
[1720185302321,7.6604,130.54,130.5,7.6625]
[1720185302485,7.6604,130.54,130.49,7.6632]
[1720185302807,0.17,130.53,130.45,25.3152]
[1720185303022,7.6622,130.51,130.45,25.3152]
[1720185303305,7.6629,130.5,130.45,32.9807]
[1720185303484,7.6627,130.51,130.46,7.665]
[1720185303685,0.17,130.5,130.46,7.665]
[1720185303903,0.17,130.5,130.47,7.6644]
[1720185304282,7.8324,130.51,130.47,7.6644]
[1720185304477,0.17,130.51,130.45,26.829]
[1720185304680,0.17,130.51,130.43,6.0756]
[1720185304913,7.6636,130.49,130.44,26.8319]
[1720185305083,0.17,130.51,130.44,26.8319]
[1720185305621,0.17,130.51,130.46,19.1628]
[1720185305786,7.8322,130.51,130.46,26.8275]
[1720185305988,0.17,130.51,130.47,7.6645]
[1720185306199,8.01144579,130.52,130.44,100.0]
[1720185306388,7.6602,130.55,130.5,7.6627]
[1720185306586,5.34023091,130.59,130.48,22.527]
[1720185306792,8.00888086,130.55,130.5,100.0]
[1720185307087,32.6777,130.62,130.5,100.0]
[1720185307300,8.00734088,130.6,130.54,26.8111]
[1720185307505,8.00734088,130.6,130.49,100.0]
[1720185307704,8.00734088,130.6,130.48,22.527]
[1720185307900,7.6576,130.59,130.54,7.6602]
[1720185308119,27.14984088,130.6,130.53,19.1518]
[1720185308416,27.14984088,130.6,130.52,7.6614]
[1720185308710,7.6579,130.59,130.52,19.1538]
[1720185308910,7.6579,130.59,130.54,7.6603]
[1720185309293,8.00734088,130.6,130.54,100.0]
[1720185309610,7.6547,130.64,130.59,7.6573]
[1720185310115,19.1369,130.64,130.55,19.1493]
[1720185310617,8.00361697,130.65,130.58,7.6579]
[1720185310912,27.13901697,130.65,130.53,6.4983]
[1720185311097,7.6559,130.62,130.53,6.4983]
[1720185311297,27.13901697,130.65,130.56,19.148]
[1720185311692,38.2751,130.64,130.53,19.1516]
[1720185311907,7.6587,130.57,130.52,7.6612]
[1720185312104,13.5381,130.62,130.51,7.662]
[1720185312105,7.6599,130.55,130.51,7.662]
[1720185312301,7.6599,130.55,130.5,26.8185]
[1720185312687,7.8293,130.56,130.5,19.1558]
[1720185313119,7.6577,130.59,130.54,7.6603]
[1720185313301,0.17,130.58,130.52,19.1537]
[1720185313499,7.6593,130.56,130.52,19.1537]
[1720185313819,0.17,130.58,130.53,7.6609]
[1720185314112,0.17,130.58,130.52,19.1537]
[1720185314414,0.17,130.58,130.54,7.6604]
[1720185314620,7.657,130.6,130.55,7.6594]
[1720185314787,7.6571,130.6,130.55,7.6598]
[1720185314988,3.7366,130.66,130.56,100.0]
[1720185314989,22.8713,130.66,130.56,100.0]
[1720185315193,7.6546,130.64,130.59,7.657]
[1720185315421,7.6557,130.63,130.58,26.8026]
[1720185315609,7.6557,130.63,130.58,26.8025]
[1720185315915,8.00361697,130.65,130.6,19.1422]
[1720185316112,15.65791697,130.65,130.6,26.7987]
[1720185316317,19.1377,130.64,130.55,6.0006]
[1720185316531,8.00361697,130.65,130.51,6.4618]
[1720185316812,7.66,130.55,130.51,14.1239]
[1720185317124,7.6595,130.56,130.52,7.6615]
[1720185317308,19.1428,130.6,130.51,6.4618]
[1720185317615,38.2774,130.63,130.49,7.6632]
[1720185317616,7.6612,130.53,130.49,7.6632]
[1720185318494,22.8824,130.58,130.49,7.6632]
[1720185318706,19.1483,130.56,130.48,13.7699]
[1720185318901,19.1483,130.56,130.47,19.1604]
[1720185318902,7.6622,130.51,130.47,19.1604]
[1720185319120,7.6622,130.51,130.47,26.8248]
[1720185319299,0.17,130.5,130.41,0.1]
[1720185319616,7.6641,130.48,130.41,0.1]
[1720185319927,7.6662,130.45,130.41,0.1]
[1720185320125,0.17,130.47,130.41,0.1]
[1720185320423,7.6664,130.44,130.41,0.1]
[1720185320591,0.17,130.43,130.41,0.1]
[1720185320788,7.837,130.43,130.41,0.1]
[1720185321007,0.17,130.43,130.41,0.1]
[1720185321219,7.8373,130.43,130.41,0.1]
[1720185322028,7.6653,130.46,130.41,0.1]
[1720185322322,8.01490257,130.48,130.41,0.1]
[1720185322611,8.01490257,130.48,130.42,19.1675]
[1720185323211,7.6646,130.47,130.42,19.1675]
[1720185323419,7.6657,130.45,130.41,0.1]
[1720185324206,7.6653,130.46,130.41,7.7681]
[1720185324531,17.2747,130.51,130.42,7.6674]
[1720185324532,0.17,130.45,130.42,7.6674]
[1720185324702,0.17,130.46,130.42,7.6674]
[1720185325130,7.6641,130.48,130.43,7.6668]
[1720185325311,7.6635,130.49,130.44,7.6662]
[1720185325511,19.1551,130.52,130.42,7.667]
[1720185325811,19.1551,130.52,130.41,7.7679]
[1720185325812,7.6652,130.46,130.41,7.7679]
[1720185326418,7.6659,130.45,130.41,0.1]
[1720185326612,8.01439624,130.51,130.41,0.1]
[1720185326814,19.1616,130.47,130.41,0.1]
[1720185327124,0.17,130.46,130.41,0.1]
[1720185327442,19.1646,130.45,130.41,0.1]
[1720185327628,0.17,130.44,130.41,0.1]
[1720185327928,7.6675,130.42,130.41,0.1]
[1720185328140,7.8375,130.42,130.41,0.1]
[1720185331346,7.8375,130.42,130.41,0.0001]
[1720185331542,7.6704,130.37,130.36,0.8551514]
[1720185331740,0.17,130.37,130.36,0.8551514]
[1720185332919,62.95340074,130.44,130.36,0.8551514]
[1720185333126,7.6679,130.42,130.37,7.67]
[1720185333320,1.16409784,130.47,130.41,7.6679]
[1720185333558,7.6653,130.46,130.41,26.8381]
[1720185333845,7.6659,130.45,130.41,19.1702]
[1720185334028,19.1631,130.46,130.39,19.1732]
[1720185334228,1.16409784,130.47,130.36,26.0860514]
[1720185334434,7.6688,130.4,130.36,33.7569514]
[1720185334751,7.6693,130.39,130.36,0.8551514]
[1720185335246,7.8399,130.38,130.36,0.8551514]
[1720185335849,0.17,130.38,130.36,0.8551514]
[1720185336023,0.17,130.39,130.36,0.8551514]
[1720185336223,7.6677,130.42,130.37,7.6701]
[1720185336422,0.17,130.41,130.37,7.6701]
[1720185336650,0.17,130.41,130.39,7.6689]
[1720185336847,8.0181013,130.42,130.4,7.6684]
[1720185337059,7.6658,130.45,130.39,19.1729]
[1720185337354,7.6658,130.45,130.4,7.6684]
[1720185337538,8.01605589,130.46,130.37,121.7341]
[1720185337739,8.01605589,130.46,130.44,7.6661]
[1720185337927,7.6643,130.48,130.43,26.8339]
[1720185338247,7.6649,130.47,130.43,19.1672]
[1720185338753,7.6648,130.47,130.42,7.6674]
[1720185338954,7.6648,130.47,130.42,26.8361]
[1720185339156,7.6652,130.46,130.42,19.1687]
[1720185339365,7.6664,130.44,130.4,7.6685]
[1720185339924,7.666,130.45,130.4,7.6685]
[1720185340232,7.6671,130.43,130.38,7.6695]
[1720185340448,7.8367,130.44,130.39,7.6692]
[1720185340851,7.8367,130.44,130.4,7.6685]
[1720185341067,0.17,130.44,130.41,7.668]
[1720185341853,7.6649,130.47,130.43,7.6667]
[1720185342075,7.6641,130.48,130.43,26.8338]
[1720185342231,7.6641,130.48,130.44,7.6663]
[1720185342436,7.6647,130.47,130.43,26.8338]
[1720185342869,7.664,130.48,130.43,26.8338]
[1720185343156,7.664,130.48,130.44,7.6663]
[1720185343330,7.664,130.48,130.43,26.8339]
[1720185344256,7.6646,130.47,130.43,26.8339]
[1720185344461,7.8346,130.47,130.43,19.1672]
[1720185344660,7.8349,130.47,130.39,100.0]
[1720185345055,8.01407129,130.49,130.41,222.99]
[1720185345256,8.01407129,130.49,130.48,26.824]
[1720185345433,19.1551,130.53,130.5,19.1566]
[1720185345636,19.1551,130.53,130.52,7.6616]
[1720185345876,7.6594,130.56,130.52,7.6616]
[1720185346176,7.6601,130.55,130.5,25.7286]
[1720185346381,7.6589,130.57,130.52,7.6615]
[1720185346554,7.6589,130.57,130.52,26.8154]
[1720185346753,7.6595,130.56,130.52,19.1539]
[1720185347059,8.00861211,130.58,130.52,26.8153]
[1720185347060,7.6588,130.57,130.52,26.8153]
[1720185347253,8.00861211,130.58,130.52,26.8153]
[1720185348573,0.17,130.57,130.5,30.0991]
[1720185348875,0.17,130.57,130.49,19.1582]
[1720185349174,7.6606,130.54,130.49,19.1582]
[1720185349374,0.17,130.53,130.49,26.8212]
[1720185350168,7.8313,130.53,130.49,19.1582]
[1720185350755,0.17,130.53,130.46,25.4037]
[1720185350959,7.8314,130.53,130.48,26.8235]
[1720185351784,7.6618,130.52,130.47,7.6642]
[1720185351966,0.17,130.51,130.47,7.6642]
[1720185352288,7.6598,130.56,130.51,7.6618]
[1720185352980,7.6594,130.56,130.52,7.6615]
[1720185353148,6.14686227,130.6,130.56,19.1481]
[1720185353355,22.8716,130.66,130.57,7.6587]
[1720185353566,7.6549,130.64,130.59,7.6574]
[1720185353762,15.65969513,130.64,130.59,7.657]
[1720185353970,15.65969513,130.64,130.58,19.145]
[1720185353971,8.00479513,130.64,130.6,7.6569]
[1720185354165,8.00479513,130.64,130.58,19.145]
[1720185354166,7.6552,130.63,130.58,19.145]
[1720185354363,8.00479513,130.64,130.55,19.1486]
[1720185354766,8.00479513,130.64,130.55,26.808]
[1720185354767,7.657,130.6,130.55,26.808]
[1720185354963,7.656,130.62,130.57,19.1465]
[1720185355168,7.6553,130.63,130.59,7.6574]
[1720185355375,15.65959513,130.64,130.59,7.6574]
[1720185355574,7.6552,130.63,130.59,7.6573]
[1720185355771,15.65949513,130.64,130.54,100.0]
[1720185355961,15.65949513,130.64,130.59,19.1436]
[1720185356167,8.00479513,130.64,130.61,7.6563]
[1720185356886,3.8366,130.69,130.63,7.6552]
[1720185357108,7.653,130.67,130.62,7.6556]
[1720185357267,8.00237219,130.67,130.64,7.6544]
[1720185357590,7.7518,130.69,130.63,19.1375]
[1720185357975,0.1,130.69,130.66,7.6533]
[1720185358365,0.1,130.69,130.65,26.7886]
[1720185358858,0.1,130.69,130.66,7.6533]
[1720185359058,0.1,130.69,130.65,26.7886]
[1720185359286,7.7517,130.69,130.65,26.7888]
[1720185359487,0.1,130.69,130.66,7.6534]
[1720185359674,0.1,130.69,130.65,26.7886]
[1720185359878,7.6522,130.68,130.63,7.655]
[1720185360079,7.6524,130.68,130.63,7.655]
[1720185360267,7.6524,130.68,130.62,19.1384]
[1720185360268,7.7518,130.69,130.64,7.6545]
[1720185360469,0.1,130.69,130.62,19.1384]
[1720185360670,7.6533,130.67,130.62,19.1384]
[1720185360873,7.6533,130.67,130.62,26.7939]
[1720185361075,0.1,130.69,130.61,21.7114]
[1720185361076,7.6551,130.64,130.61,6.6562]
[1720185361371,7.6542,130.65,130.6,7.6565]
[1720185361669,7.8236,130.66,130.61,7.6563]
[1720185362570,0.17,130.66,130.62,7.6557]
[1720185362905,0.17,130.66,130.63,7.6551]
[1720185363062,0.17,130.67,130.63,7.6551]
[1720185363260,0.17,130.67,130.61,19.1404]
[1720185363465,0.17,130.68,130.61,19.1404]
[1720185363662,7.6535,130.66,130.61,26.7962]
[1720185363891,0.17,130.65,130.62,7.6557]
[1720185364489,0.17,130.66,130.62,7.6557]
[1720185364695,0.17,130.66,130.63,7.655]
[1720185364990,0.1,130.69,130.63,7.655]
[1720185364991,7.7522,130.69,130.63,19.1377]
[1720185365394,7.7522,130.69,130.64,7.6544]
[1720185365583,0.1,130.69,130.68,7.6522]
[1720185365981,4.12197411,130.72,130.71,26.7768]
[1720185366185,8.09667012,130.79,130.69,100.0]
[1720185366390,8.09667012,130.79,130.75,19.1201]
[1720185366575,8.09667012,130.79,130.76,7.6474]
[1720185366770,0.1,130.79,130.75,19.1201]
[1720185366974,7.6468,130.78,130.73,7.6493]
[1720185367185,7.6491,130.74,130.69,7.6513]
[1720185367499,0.1,130.79,130.67,100.0]
[1720185367678,0.1,130.79,130.74,7.6482]
[1720185367873,7.746,130.79,130.74,7.6482]
[1720185368072,7.746,130.79,130.75,7.648]
[1720185368073,0.1,130.79,130.75,7.648]
[1720185368295,7.7458,130.79,130.74,26.7701]
[1720185368501,0.1,130.79,130.71,19.1252]
[1720185368800,0.1,130.79,130.73,19.123]
[1720185369106,7.7462,130.79,130.74,7.6487]
[1720185369412,0.1,130.79,130.75,7.6481]
[1720185369583,7.7459,130.79,130.74,7.6485]
[1720185369779,0.1,130.79,130.74,7.6485]
[1720185369997,7.6465,130.78,130.73,19.123]
[1720185370394,7.6478,130.76,130.7,19.1273]
[1720185370582,7.6478,130.76,130.72,7.6498]
[1720185370782,7.6471,130.77,130.72,7.6498]
[1720185371491,0.1,130.79,130.69,100.0]
[1720185371691,0.1,130.79,130.71,200.0]
[1720185372013,0.1,130.79,130.78,7.6464]
[1720185372711,8.84971857,130.82,130.81,26.7562]
[1720185372888,0.1,130.89,130.87,7.6407]
[1720185373292,0.8551514,130.95,130.94,7.637]
[1720185373703,7.6308,131.05,130.98,7.6347]
[1720185374004,7.633,131.01,130.96,26.7245]
[1720185374231,0.1,131.09,130.98,7.6347]
[1720185374383,7.6308,131.05,130.98,7.6347]
[1720185374583,7.63,131.07,130.98,7.6347]
[1720185374782,19.1709,131.09,130.98,7.6347]
[1720185375003,19.0758,131.06,130.96,19.0889]
[1720185375204,7.6312,131.05,130.98,7.6347]
[1720185375389,0.1,131.09,130.98,7.6347]
[1720185376183,7.6305,131.06,130.98,7.6347]
[1720185376382,0.1,131.09,130.96,19.0889]
[1720185376600,19.9284514,131.08,130.98,7.6347]
[1720185376789,0.8551514,131.08,130.96,19.0889]
[1720185376999,7.6778054,131.02,130.97,7.6352]
[1720185377204,0.0454054,131.02,130.96,19.0889]
[1720185378009,7.6336,131.0,130.93,19.0935]
[1720185378211,7.633,131.01,130.95,7.6363]
[1720185378416,7.6779054,131.02,130.96,7.6357]
[1720185378599,7.6779054,131.02,130.98,7.6347]
[1720185378600,0.0454054,131.02,130.98,7.6347]
[1720185378907,0.0454054,131.02,130.98,26.7215]
[1720185379791,0.0454054,131.02,131.01,7.633]
[1720185379996,0.0454054,131.02,131.01,207.633]
[1720185380191,0.8551514,131.08,131.01,200.0]
[1720185380486,0.8551514,131.08,131.07,7.6295]
[1720185380895,0.8551514,131.08,131.07,37.6295]
[1720185381315,0.1,131.09,131.08,7.6289]
[1720185381517,0.8551514,131.21,131.08,206.2944]
[1720185381831,0.8551514,131.21,131.08,136.2944]
[1720185382192,0.8551514,131.21,131.11,19.0675]
[1720185382422,0.8551514,131.21,131.08,236.2944]
[1720185382719,7.6232,131.18,131.12,26.6917]
[1720185383026,7.6256,131.14,131.09,30.0]
[1720185383199,19.9092514,131.21,131.09,30.0]
[1720185383397,7.625,131.15,131.1,7.6275]
[1720185383598,7.6244,131.16,131.1,26.6962]
[1720185383926,19.1571,131.19,131.08,7.6288]
[1720185384227,19.1571,131.19,131.04,15.0006]
[1720185384228,7.6254,131.14,131.07,19.0731]
[1720185384422,7.626,131.13,131.08,7.6287]
[1720185384623,19.0597,131.17,131.07,19.0731]
[1720185384822,7.6264,131.13,131.08,7.6287]
[1720185385128,0.17,131.16,131.07,26.7025]
[1720185385332,0.17,131.16,131.04,26.708]
[1720185385534,0.17,131.16,131.04,19.0774]
[1720185385718,19.0657,131.13,131.04,19.0774]
[1720185385915,0.17,131.16,131.06,19.0739]
[1720185385916,19.2314,131.16,131.06,19.0739]
[1720185386218,19.2314,131.16,131.03,100.0]
[1720185386608,7.6261,131.13,131.08,7.6287]
[1720185386826,19.2314,131.16,131.08,7.6287]
[1720185387155,0.1,131.19,131.12,26.6925]
[1720185387345,0.1,131.19,131.12,19.066]
[1720185387705,7.6235,131.18,131.13,7.6255]
[1720185388315,7.6242,131.16,131.12,19.066]
[1720185388615,7.6238,131.17,131.12,26.6922]
[1720185388935,7.6307,131.05,131.0,7.6335]
[1720185389107,7.6307,131.05,130.97,6.5468]
[1720185389108,19.0713,131.09,130.97,6.5468]
[1720185389441,7.6296,131.07,131.02,7.6323]
[1720185389942,22.574816,131.15,131.0,19.0835]
[1720185389943,19.2429,131.08,131.0,19.0835]
[1720185390435,7.6315,131.04,131.0,19.0835]
[1720185390608,7.6308,131.05,131.0,26.7169]
[1720185390943,7.6323,131.03,130.98,7.6345]
[1720185391147,7.6325,131.02,130.97,26.7229]
[1720185391344,0.17,131.03,130.97,19.0877]
[1720185391646,0.17,131.03,130.94,19.092]
[1720185391852,0.17,131.03,130.91,6.1374]
[1720185392053,0.17,131.03,130.93,26.7309]
[1720185392225,7.6341,131.0,130.93,19.0934]
[1720185392527,7.6342,130.99,130.94,7.6369]
[1720185392937,7.6337,131.0,130.95,7.6363]
[1720185393241,7.8035,131.01,130.95,7.6365]
[1720185393558,0.17,131.01,130.95,19.0905]
[1720185393847,7.98281656,131.03,130.98,7.6342]
[1720185394054,7.6325,131.02,130.96,26.7242]
[1720185394347,7.6325,131.02,130.91,106.1374]
[1720185394348,7.6331,131.01,130.93,19.0937]
[1720185394527,7.6338,131.0,130.95,7.6364]
[1720185394848,7.6331,131.01,130.96,7.6358]
[1720185395145,19.0777,131.05,130.93,19.0937]
[1720185395338,0.17,131.04,130.93,19.0937]
[1720185395531,7.6343,130.99,130.94,7.6366]
[1720185395736,0.17,131.04,130.93,19.0937]
[1720185395931,0.17,131.04,130.92,100.0]